Cogmind - Beta 15 @@@ ROGUE MODE // 2025.09.12 @ 00:49:11 Player: k1ll3rb0t Result: Destroyed by Striker with Plasma Lance Performance ------------- Evolutions (5) 2500 Regions Visited (9) 1800 Robots Destroyed (97) 485 Value Destroyed (4320) 4320 Prototype IDs (27) 540 Alien Tech Used (1) 200 Bonus (3704) 3704 TOTAL SCORE: 13549 Bonus ------- Registered with UFD 300 Met Optimus in HQ 500 Met Warlord at Base 500 MAIN.C Attacked Warlord 500 Warlord Defense Kills 1904 Cogmind --------- Core Integrity 0/1000 Matter 170/300 Energy 85/100 System Corruption 10% Temperature Cool (0) Movement Core (50) Location -5/Warlord Parts ------- > --- POWER (1) -------- (None) > --- PROPULSION (6) --- (None) > --- UTILITY (5) ------ Experimental Core Analyzer > --- WEAPON (5) ------- (None) > --- INVENTORY (5) ---- Cooling System Deep Structural Scanner Authchip [Device] Remote Datajack Plasma Cutter Peak State ------------ > --- POWER ------------ Neutrino Core > --- PROPULSION ------- Carbon-fiber Leg Carbon-fiber Leg Improved Carbon-fiber Leg Improved Carbon-fiber Leg Enhanced Armored Leg Enhanced Armored Leg > --- UTILITY ---------- Advanced Cooling System Huge Storage Unit Advanced Targeting Computer Core Analyzer Medium Reactive Plating > --- WEAPON ----------- Vortex Cannon Vortex Cannon Hypervelocity Gauss Rifle Bore Cannon Plasma Flamer > --- INVENTORY -------- Cold Fusion Reactor Neutrino Core Flexi-carbon Leg Thunder Leg Cooling System Matter Compressor Deep Structural Scanner Medium Reactive Plating Medium Reactive Plating Authchip [Device] Dimensional Node Initializer BFG-9k Vortex Edition Railgun Bore Cannon Bore Cannon Remote Datajack Plasma Cutter Plasma Flamer Phasing Sabre DRS Beacon [Rating: 100] Favorites ----------- Power Improved Ion Engine Engine Improved Ion Engine Power Core Neutrino Core Reactor Cold Fusion Reactor Propulsion Improved Aluminum Leg Treads Light Treads Leg Improved Aluminum Leg Wheel Wheel Hover Unit Linear Gravjet Utility High-capacity Storage Unit Device Deep Structural Scanner Storage High-capacity Storage Unit Processor Advanced Targeting Computer Hackware Authchip [Device] Protection Makeshift Light Armor Plating Weapon Spread Laser Energy Gun Spread Laser Energy Cannon Vortex Cannon Ballistic Gun Hypervelocity Gauss Rifle Ballistic Cannon Bore Cannon Launcher Subdweller Shrapnel Launcher Special Weapon Plasma Flamer Impact Weapon Powered Hammer Slashing Weapon Chainsword Build | -11 -10 -10 -9 -9 -6 -5 -5 -5 -5 ------- Run | Yrd Mat Sub Rec Scr Fac Fac Upp Upp War Slots Evolved 10 | . . . . . 8 2 . . . Power . | . . . . . . . . . . Propulsion 4 | . . . . . 4 . . . . Utility 3 | . . . . . 1 2 . . . Weapon 3 | . . . . . 3 . . . . Parts Attached 135 | 8 14 7 1 8 31 29 9 6 22 Power 13 | 1 2 1 1 2 3 2 . . 1 Engine 10 | 1 2 1 1 2 3 . . . . Core 2 | . . . . . . 1 . . 1 Reactor 1 | . . . . . . 1 . . . Propulsion 46 | 3 3 3 . 1 8 12 6 3 7 Treads 2 | 1 1 . . . . . . . . Leg 39 | 2 2 2 . 1 8 8 6 3 7 Wheel 3 | . . 1 . . . 2 . . . Hover 2 | . . . . . . 2 . . . Flight . | . . . . . . . . . . Utility 30 | 2 4 1 . 2 10 7 . . 4 Device 11 | 1 2 . . 1 4 3 . . . Storage 5 | 1 2 . . . 1 1 . . . Processor 5 | . . . . . 2 2 . . 1 Hackware 1 | . . . . 1 . . . . . Protection 8 | . . 1 . . 3 1 . . 3 Artifact . | . . . . . . . . . . Weapon 46 | 2 5 2 . 3 10 8 3 3 10 Energy Gun 16 | 1 3 1 . . 5 2 1 1 2 Energy Cannon 2 | . . . . . . . . . 2 Ballistic Gun 12 | 1 . . . 3 1 5 . . 2 Ballistic Cannon 3 | . . . . . . . . . 3 Launcher 4 | . 1 1 . . 2 . . . . Special Weapon 6 | . 1 . . . . 1 1 2 1 Impact Weapon 1 | . . . . . 1 . . . . Slashing Weapon 2 | . . . . . 1 . 1 . . Piercing Weapon . | . . . . . . . . . . Special Melee Weapon . | . . . . . . . . . . Unidentified Prototypes 6 | . . . . . . 3 . . 3 Corrupted Parts 1 | . . . . 1 . . . . . System Corruption 3 | . . . . 3 . . . . . Parts Lost 67 | . . 3 . . 27 6 1 4 26 Power 6 | . . 1 . . 3 . . . 2 Propulsion 26 | . . 2 . . 9 2 1 1 11 Utility 9 | . . . . . 6 1 . . 2 Weapon 26 | . . . . . 9 3 . 3 11 Highest Loss Streak 21 | . . 2 . . 13 3 1 3 21 To Critical Strikes 2 | . . . . . 1 . . . 1 Average Backups 15 | 5 9 9 13 17 18 18 18 18 18 Power 1 | . 1 . 2 1 . 1 2 2 1 Propulsion 1 | 3 3 1 1 1 . 1 3 3 2 Utility 6 | . 1 2 6 6 11 10 9 8 6 Weapon 4 | 1 2 4 4 6 4 2 2 3 4 Tool/Special . | . . . . . . . . . . Unused Backups 30 | . 4 1 . 3 3 9 2 . 8 Power 1 | . . . . . . 1 . . . Propulsion 2 | . 2 . . . . . . . . Utility 16 | . 1 . . 1 3 4 1 . 6 Weapon 8 | . 1 1 . 1 . 3 1 . 1 Tool/Special 3 | . . . . 1 . 1 . . 1 Average Slot Usage (%) 93 | . 100 96 100 91 82 92 99 96 96 Engine 9 | . 14 14 14 13 4 . . . . Core 1 | . . . . . . 3 5 5 4 Treads 2 | . 2 17 . . . . . . . Leg 25 | . 25 6 28 25 22 25 34 34 33 Device 6 | . 14 3 . 7 6 5 5 5 4 Storage 10 | . 14 14 14 13 5 5 5 5 4 Processor 3 | . . . . . 8 9 11 11 10 Protection 5 | . . 10 14 6 1 5 5 5 4 Energy Gun 13 | . 16 26 28 15 5 2 8 7 6 Ballistic Gun 8 | . 11 . . 8 15 17 11 11 4 Peak Build Rating 100 | 9 14 16 19 39 68 86 85 86 100 Average Rating 39 | 5 12 13 18 22 60 70 83 80 88 On Entrance 37 | . 9 11 16 19 39 27 85 85 84 Naked Turns 87 | . . . . 59 . . . . 28 Heaviest Build 162 | 15 22 25 57 59 112 87 87 86 162 Greatest Support 113 | 20 40 40 26 55 113 105 108 108 108 Greatest Overweight (x) 5 | 4 . 1 2 2 3 5 . . 1 Average Overweight (x) . | . . . 1 1 . . . . . Largest Inventory Capacity 25 | 8 20 10 20 20 25 25 20 20 25 Average Capacity 18 | 7 9 10 19 19 22 20 20 20 23 Most Carried 25 | 7 11 10 17 20 25 20 20 20 25 Average Carried 17 | 5 9 9 14 18 19 19 19 19 22 Final Capacity 25 | 8 10 10 20 20 25 20 20 20 5 Final Carried 20 | 7 10 10 17 20 16 20 20 20 5 Class Distribution -------------------- 66% | Mutant 22% | Scavenger-Gunner 5% | Gunner Dominant Class ---------------- Mutant | -10/Materials Mutant | -10/Subcaves Mutant | -9/Recycling Mutant | -9/Scraptown Gunner | -6/Factory Scavenger-Gunner | -5/Factory Scavenger-Gunner | -5/Upper Caves Scavenger-Gunner | -5/Upper Caves Scavenger-Gunner | -5/Warlord Resources | -11 -10 -10 -9 -9 -6 -5 -5 -5 -5 ----------- Run | Yrd Mat Sub Rec Scr Fac Fac Upp Upp War Matter Collected 3481 | 246 290 262 33 120 468 635 681 217 529 Remotely . | . . . . . . . . . . Salvage Created 3774 | 42 444 169 218 . 665 738 351 623 524 Parts 197 | 5 26 15 7 . 37 54 9 21 23 Haulers Intercepted 2 | . 2 . . . . . . . . Recyclers Shooed 4 | 1 3 . . . . . . . . Parts Field Recycled . | . . . . . . . . . . Retrieved Matter . | . . . . . . . . . . Parts Self-Destructed 39 | . . 10 . . . . 11 18 . Prevented 8 | . . . . . . . 8 . . Kills | -11 -10 -10 -9 -9 -6 -5 -5 -5 -5 ------- Run | Yrd Mat Sub Rec Scr Fac Fac Upp Upp War Combat Hostiles Destroyed 81 | . 10 11 2 . 14 16 3 11 14 Melee 8 | . . . . . 3 4 1 . . Guns 43 | . 10 6 2 . 4 8 2 6 5 Cannons 10 | . . . . . . . . 1 9 AOE 20 | . . 5 . . 7 4 . 4 . Classes Destroyed 20 | 1 5 2 1 . 6 2 . . 3 Worker 3 | . . . . . . 3 . . . Builder 2 | . . . . . 2 . . . . Tunneler 2 | 2 . . . . . . . . . Hauler 2 | . 2 . . . . . . . . Recycler 3 | . 1 . 2 . . . . . . Mechanic 1 | . 1 . . . . . . . . Operator 1 | . . . . . 1 . . . . Turret 2 | . . 2 . . . . . . . Swarmer 11 | . 2 4 . . . 4 . 1 . Saboteur 1 | . . . . . . . . . 1 Grunt 37 | . 8 1 . . 8 6 3 7 4 Brawler 3 | . . . . . 1 . . 1 1 Duelist 4 | . . . . . 2 . . 1 1 Protector 1 | . . . . . 1 . . . . Sentry 6 | . . . 2 . 1 2 . 1 . Hunter 3 | . . . . . . 1 . . 2 Programmer 7 | . . . . . 1 3 . . 3 Striker 1 | . . . . . . . . . 1 Executioner 1 | . . . . . . . . . 1 Subdweller 6 | . . 6 . . . . . . . Decomposer 1 | . . . . . . . 1 . . Packrat 2 | . . . . . . . 2 . . Best Kill Streak 9 | 1 3 6 2 . 9 6 2 7 5 Combat Bots Only 8 | . 3 4 1 . 8 6 2 7 5 Max Kills in Single Turn 5 | 1 2 2 1 . 5 3 1 3 2 Gunslinging 1 | . 1 . . . . 1 . . . Exploded 4 | . . 2 . . 4 3 . 3 . Melee 1 | . . . . . 1 1 1 . . Uniques/NPCs Destroyed . | . . . . . . . . . . Combat | -11 -10 -10 -9 -9 -6 -5 -5 -5 -5 -------- Run | Yrd Mat Sub Rec Scr Fac Fac Upp Upp War Hostile Shots Fired 769 | . 26 73 6 . 236 123 13 48 244 Missed 223 | . 11 24 1 . 80 42 . 8 57 Hits 546 | . 15 49 5 . 156 81 13 40 187 Melee 20 | . . . . . 8 . . 1 11 Projectile 526 | . 15 49 5 . 148 81 13 39 176 Critical Strikes 26 | . 1 . . . 11 . 1 2 11 Part Disruptions 2 | . . . . . 1 . . . 1 Damage Taken 11109 | . 182 735 72 . 2986 1585 264 835 4450 Core 1603 | . 42 111 14 . 388 56 36 . 956 Absorbed by Shields . | . . . . . . . . . . Redirected to Shielding 13 | . . . . . 13 . . . . Ignored by Resistances 504 | . . . . . . . . . 504 Regen/Repaired (Parts) 301 | . . . . . . . . . 301 Core Remaining (%) 62 | 100 . . . 33 54 . . . . Volleys Fired 171 | 7 33 33 6 . 23 21 5 12 31 Largest 5 | 2 2 2 2 . 5 5 4 5 5 Hottest 491 | 70 130 130 130 . 208 258 241 491 308 Shots Fired 460 | 14 64 58 12 . 47 83 18 41 123 Gun 345 | 14 63 43 12 . 36 80 17 34 46 Cannon 61 | . . . . . . . . . 61 Launcher 27 | . . 12 . . 11 2 . 2 . Special 27 | . 1 3 . . . 1 1 5 16 Kinetic 231 | 7 25 2 . . 34 66 8 22 67 Thermal 168 | 7 39 46 12 . 8 10 7 17 22 Explosive 19 | . . 10 . . 5 2 . 2 . Electromagnetic 12 | . . . . . . 4 3 . 5 Entropic 29 | . . . . . . . . . 29 Robot Hit Streak 19 | 3 11 19 11 . 15 10 4 12 8 Robot Miss Streak 5 | 4 5 5 3 . 2 3 2 2 3 Penetration Max 1 | . . . . . . . . 1 1 Secondary Targets 6 | . 1 1 . . 1 2 1 . . Max Gunslinging Chain 1 | . 1 1 . . 1 1 1 . . Shots Hit Robots 332 | 8 48 41 10 . 51 63 16 28 67 Core Hits 290 | 2 56 53 19 . 53 39 11 31 26 Critical Kills 10 | . . . . . . 1 1 3 5 Critical Parts Destroyed 9 | 1 . . . . 1 . . . 7 Critical Strikes 31 | 1 . . . . 2 3 1 4 20 Burn 2 | . . . . . . . . 1 1 Destroy 19 | 1 . . . . 1 1 1 3 12 Sever 3 | . . . . . 1 2 . . . Sunder 7 | . . . . . . . . . 7 Melee Attacks 77 | . . . . . 38 28 9 1 1 Impact 14 | . . . . . 14 . . . . Slashing 63 | . . . . . 24 28 9 1 1 Piercing . | . . . . . . . . . . Sneak Attacks 7 | . . . . . . 5 2 . . Combat Hostiles . | . . . . . . . . . . Follow-up Attacks . | . . . . . . . . . . Damage Inflicted 10950 | 104 607 1024 170 . 2933 2095 438 990 2589 Guns 4326 | 104 607 499 170 . 534 977 136 460 839 Cannons 1656 | . . . . . . . . . 1656 Explosions 3346 | . . 525 . . 1919 398 . 504 . Melee 1502 | . . . . . 480 720 302 . . Ramming . | . . . . . . . . . . Kinetic 4394 | 55 151 186 . . 1806 833 48 239 1076 Thermal 1961 | 49 456 499 170 . 203 82 65 247 190 Explosive 1685 | . . 339 . . 444 398 . 504 . Electromagnetic 164 | . . . . . . 62 23 . 79 Impact . | . . . . . . . . . . Slashing 1502 | . . . . . 480 720 302 . . Piercing . | . . . . . . . . . . Entropic 1244 | . . . . . . . . . 1244 Highest Corruption 10 | . . . . 3 5 4 5 5 10 Average Corruption 3 | . . . . 3 1 3 4 5 7 Corruption Purged . | . . . . . . . . . . Corruption Blocked . | . . . . . . . . . . Effects 49 | . . . . . 8 6 13 11 11 Message Errors 9 | . . . . . 1 1 3 1 3 Matter Fused 10 | . . . . . . 2 3 2 3 Heat Flow Errors 9 | . . . . . 3 . 2 4 . Energy Discharges 3 | . . . . . . 1 2 . . Parts Rejected 2 | . . . . . . . . . 2 Data Loss (minor) 2 | . . . . . . 1 1 . . Data Loss (major) 7 | . . . . . 3 . 1 3 . Misfires 1 | . . . . . . . 1 . . Alerts 1 | . . . . . . 1 . . . Weapon Failures 5 | . . . . . 1 . . 1 3 Overload Shots 2 | . . . . . . 1 . 1 . Overflow Damage 351 | . . . . . 187 54 . . 110 Projectiles 110 | . . . . . . . . . 110 Explosions 187 | . . . . . 187 . . . . Melee 54 | . . . . . . 54 . . . Knockbacks 5 | . . . . . . . . . 5 Impact . | . . . . . . . . . . Kinetic 5 | . . . . . . . . . 5 Secondary . | . . . . . . . . . . Self-Inflicted Damage 294 | . . 43 . . 251 . . . . Shots 7 | . . 2 . . 5 . . . . Rammed . | . . . . . . . . . . Targets Rammed . | . . . . . . . . . . Kicked . | . . . . . . . . . . Crushed . | . . . . . . . . . . Highest Temperature 316 | 18 129 163 208 . 200 316 244 295 213 Average Temperature 74 | 8 41 53 114 . 83 118 68 116 44 Received Heat Transfer 2657 | . 111 276 18 . 1075 339 111 319 408 Effects 2 | . . . . . . 2 . . . Interference 2 | . . . . . . 2 . . . Siege Activations . | . . . . . . . . . . Martial Activations . | . . . . . . . . . . Shielding Activations . | . . . . . . . . . . Robots Disrupted . | . . . . . . . . . . Combat Hostiles . | . . . . . . . . . . Robots Corrupted . | . . . . . . . . . . Combat Hostiles . | . . . . . . . . . . Parts Fried . | . . . . . . . . . . Impact Corruptions . | . . . . . . . . . . Robots Melted . | . . . . . . . . . . Combat Hostiles . | . . . . . . . . . . Parts Melted 2 | . . 2 . . . . . . . Heat Transferred 3770 | 148 580 640 210 . 399 111 111 666 905 Parts Sabotaged 2 | . . . . . . . . . 2 Parts Stolen . | . . . . . . . . . . Parts Stripped . | . . . . . . . . . . Power Chain Reactions . | . . . . . . . . . . Alert | -11 -10 -10 -9 -9 -6 -5 -5 -5 -5 ------- Run | Yrd Mat Sub Rec Scr Fac Fac Upp Upp War Maximum Alert Level 1 | . . . . . 1 1 . . . Low Security (%) 91 | 100 100 . 100 . 90 75 . . . Level 1 8 | . . . . . 9 24 . . . Level 2 . | . . . . . . . . . . Level 3 . | . . . . . . . . . . Level 4 . | . . . . . . . . . . Level 5 . | . . . . . . . . . . High Security . | . . . . . . . . . . Max Security . | . . . . . . . . . . Peak Influence 336 | 5 138 . 25 . 336 328 . . . Initial 137 | . . . . . . 137 . . . Average 50 | . 53 . 1 . 47 106 . . . Influence Increases 2753 | 10 361 215 60 . 772 605 85 230 415 Destroy 0b10 Robot/C 1520 | . 200 140 40 . 260 320 60 220 280 Destroy 0b10 Robot/NC 75 | 10 20 . 10 . 20 15 . . . Destroy Leader 204 | . 44 . . . 60 80 10 10 . Successful Hack 26 | . 16 . 10 . . . . . . Disable Machine 105 | . . . . . 90 15 . . . Anti-Garrison Action 150 | . . . . . 150 . . . . Destroy Structure 208 | . 6 . . . 102 100 . . . Lose Combat Pursuer 465 | . 75 75 . . 90 75 15 . 135 Influence Decreases 2686 | 10 361 215 60 . 492 599 330 247 372 Entered New Map 282 | . . . . . . 143 106 9 24 Time Decay 1767 | 10 361 205 60 . 255 396 214 178 88 Lost Part 617 | . . 10 . . 237 60 10 40 260 Lost Ally 20 | . . . . . . . . 20 . Squads Dispatched 18 | . 3 . . . 6 8 . 1 . Investigation 6 | . 1 . . . 1 4 . . . Extermination 2 | . . . . . 1 1 . . . Reinforcement 4 | . 2 . . . 1 1 . . . Assault 5 | . . . . . 2 2 . 1 . Garrison 1 | . . . . . 1 . . . . Intercept . | . . . . . . . . . . Searches Triggered . | . . . . . . . . . . Construction Impeded . | . . . . . . . . . . Haulers Reinforced . | . . . . . . . . . . Active Scanning Responses . | . . . . . . . . . . Cargo Convoy Interrupts 1 | . . . . . . 1 . . . Stealth | -11 -10 -10 -9 -9 -6 -5 -5 -5 -5 --------- Run | Yrd Mat Sub Rec Scr Fac Fac Upp Upp War Distress Signals 8 | . 5 . . . 2 . . . 1 Communications Jammed . | . . . . . . . . . . Distress Signals . | . . . . . . . . . . Times Spotted 158 | . 26 12 2 . 33 30 7 12 36 Peak Tracking Total 20 | . 5 4 1 . 13 8 3 7 20 Tactical Retreats 14 | . 3 1 . . 3 2 1 . 4 Traps | -11 -10 -10 -9 -9 -6 -5 -5 -5 -5 ------- Run | Yrd Mat Sub Rec Scr Fac Fac Upp Upp War Traps Triggered 4 | . 1 1 . . 1 1 . . . Indirectly . | . . . . . . . . . . Trap Hack Attempts . | . . . . . . . . . . Triggered . | . . . . . . . . . . Disarmed . | . . . . . . . . . . Reprogrammed . | . . . . . . . . . . Reused . | . . . . . . . . . . Traps Extracted . | . . . . . . . . . . Installed . | . . . . . . . . . . Triggered . | . . . . . . . . . . Machines | -11 -10 -10 -9 -9 -6 -5 -5 -5 -5 ---------- Run | Yrd Mat Sub Rec Scr Fac Fac Upp Upp War Machines Disabled 13 | . . 4 . . 7 1 . 1 . Max in Single Turn 3 | . . 2 . . 3 1 . 1 . Garrison Access 2 | . . . . . 1 1 . . . Machines Repaired . | . . . . . . . . . . Machines Dismantled . | . . . . . . . . . . Machines Sabotaged . | . . . . . . . . . . Overloaded Fab Kills . | . . . . . . . . . . Hacking | -11 -10 -10 -9 -9 -6 -5 -5 -5 -5 --------- Run | Yrd Mat Sub Rec Scr Fac Fac Upp Upp War Machines Accessed 35 | . 3 1 4 4 3 6 1 1 12 Terminals 11 | . 3 . 4 . 2 2 . . . Fabricators 1 | . . . . . 1 . . . . Repair Stations . | . . . . . . . . . . Recycling Units 3 | . . . . . . 3 . . . Scanalyzers 1 | . . . . . . 1 . . . Garrison Access . | . . . . . . . . . . Total Hacks 106 | . 10 9 18 21 8 13 1 1 25 Successful 78 | . 5 9 9 21 3 4 1 1 25 Failed 28 | . 5 . 9 . 5 9 . . . Catastrophic 8 | . 1 . 3 . 2 2 . . . Database Lockouts . | . . . . . . . . . . Manual 23 | . 2 . 13 . . 8 . . . Terminals 36 | . 10 . 18 . 4 4 . . . Fabricators 4 | . . . . . 4 . . . . Repair Stations . | . . . . . . . . . . Recycling Units 6 | . . . . . . 6 . . . Scanalyzers 3 | . . . . . . 3 . . . Garrison Access . | . . . . . . . . . . Terminal Hacks 70 | . 5 9 7 21 . 1 1 1 25 Record 52 | . . 8 . 20 . . . 1 23 Part Schematic 4 | . . . 4 . . . . . . Prototype ID Bank 1 | . . . 1 . . . . . . Open Door 3 | . . . . . . . 1 . 2 Branch Access Points 1 | . 1 . . . . . . . . Alert Level 2 | . . . 2 . . . . . . Locate Traps 1 | . 1 . . . . . . . . Hauler Manifests 1 | . 1 . . . . . . . . Registered Components 1 | . 1 . . . . . . . . Zone Layout 2 | . 1 . . . . 1 . . . Proto ID Catalog 2 | . . 1 . 1 . . . . . Fabricator Hacks 3 | . . . . . 3 . . . . Network Status 1 | . . . . . 1 . . . . Load Schematic 1 | . . . . . 1 . . . . Build 1 | . . . . . 1 . . . . Repair Station Hacks . | . . . . . . . . . . Recycling Unit Hacks . | . . . . . . . . . . Scanalyzer 1 | . . . . . . 1 . . . Insert Component 1 | . . . . . . 1 . . . Garrison Access Hacks . | . . . . . . . . . . Unauthorized Hacks 4 | . . . 2 . . 2 . . . Terminals 2 | . . . 2 . . . . . . Botnet 2 | . . . 2 . . . . . . Fabricators . | . . . . . . . . . . Repair Stations . | . . . . . . . . . . Recycling Units 2 | . . . . . . 2 . . . Fedlink 2 | . . . . . . 2 . . . Scanalyzers . | . . . . . . . . . . Garrison Access . | . . . . . . . . . . Data Cores Recovered . | . . . . . . . . . . Used . | . . . . . . . . . . Hacking Detections 15 | . 3 . 4 . 3 5 . . . Full Trace Events 4 | . . . 2 . 1 1 . . . Feedback Events . | . . . . . . . . . . Feedback Blocked . | . . . . . . . . . . Robot Schematics Acquired . | . . . . . . . . . . Robots Built . | . . . . . . . . . . Authchips . | . . . . . . . . . . Time . | . . . . . . . . . . Total Robot Build Rating . | . . . . . . . . . . Part Schematics Acquired 4 | . . . 4 . . . . . . Parts Built 2 | . . . . . 2 . . . . Authchips 1 | . . . . . 1 . . . . Time 31 | . . . . . 31 . . . . Total Part Build Rating 4 | . . . . . 4 . . . . Parts Repaired . | . . . . . . . . . . Time . | . . . . . . . . . . Parts Recycled . | . . . . . . . . . . Recycled Matter . | . . . . . . . . . . Retrieved Matter . | . . . . . . . . . . Retrieved Components . | . . . . . . . . . . Parts Scanalyzed 1 | . . . . . . 1 . . . Part Schematics Acquired . | . . . . . . . . . . Parts Damaged 1 | . . . . . . 1 . . . Bothacking | -11 -10 -10 -9 -9 -6 -5 -5 -5 -5 ------------ Run | Yrd Mat Sub Rec Scr Fac Fac Upp Upp War Used RIF Installer . | . . . . . . . . . . Robots Hacked 1 | . . . . . . 1 . . . Non-combat 1 | . . . . . . 1 . . . Combat . | . . . . . . . . . . Robot Hacks Applied 1 | . . . . . . 1 . . . find_recycling 1 | . . . . . . 1 . . . Relay Couplers Released 5 | . . . . . 2 3 . . . Machine Destruction 5 | . . . . . 2 3 . . . Fabnet Peak Effective % . | . . . . . . . . . . Robots Rewired 2 | . . . . . . . . 2 . Allies Hacked . | . . . . . . . . . . Hacks Repelled . | . . . . . . . . . . Allies | -11 -10 -10 -9 -9 -6 -5 -5 -5 -5 -------- Run | Yrd Mat Sub Rec Scr Fac Fac Upp Upp War Total Allies 2 | . . . . . . . . 2 . Largest Group 1 | . . . . . . . . 1 1 Highest-Rated Group 30 | . . . . . . . . 30 30 Highest-Rated Ally 30 | . . . . . . . . 30 30 Total Orders . | . . . . . . . . . . Ally Attacks 2 | . . . . . . . . 1 1 Total Damage 31 | . . . . . . . . . 31 Kills . | . . . . . . . . . . Allies Corrupted 1 | . . . . . . . . . 1 Allies Melted . | . . . . . . . . . . Intel | -11 -10 -10 -9 -9 -6 -5 -5 -5 -5 ------- Run | Yrd Mat Sub Rec Scr Fac Fac Upp Upp War Active Infowar (turns) 6349 | 34 686 . . 2763 778 228 418 268 1174 Sensors 623 | . . . . . 482 141 . . . Terrain 480 | 34 446 . . . . . . . . Structural 5319 | . 240 . . 2763 366 90 418 268 1174 Robot Analysis Total . | . . . . . . . . . . Derelict Logs Recovered 5 | . . 1 . 2 . . 1 1 . Drone Launches . | . . . . . . . . . . Drone Recoveries . | . . . . . . . . . . Exploration | -11 -10 -10 -9 -9 -6 -5 -5 -5 -5 ------------- Run | Yrd Mat Sub Rec Scr Fac Fac Upp Upp War Turns Passed 13367 | 225 1110 1348 953 5009 1245 1081 451 435 1510 Spaces Moved 6820 | 139 708 784 359 2229 660 571 321 252 797 Core 200 | 10 . . . 135 . . . . 55 Treads 518 | 2 52 464 . . . . . . . Legs 5872 | 127 656 226 359 2094 660 435 321 252 742 Wheels 230 | . . 94 . . . 136 . . . Hover . | . . . . . . . . . . Flight . | . . . . . . . . . . Fastest Speed 50 | 50 120 120 120 50 122 110 120 120 50 Average Speed 172 | 131 122 155 258 222 128 137 120 120 164 Slowest Speed 470 | 250 160 190 260 260 330 470 120 120 190 Overloaded Moves . | . . . . . . . . . . Propulsion Burnouts . | . . . . . . . . . . Robots Hopped . | . . . . . . . . . . Potential Cave-ins . | . . . . . . . . . . Cave-ins Triggered . | . . . . . . . . . . Exploration Rate (%) 52 | 6 95 57 73 92 16 13 39 45 84 Regions Visited 9 Branch Regions 6 Pre-discovered Areas 7 | . . 1 . 4 . 1 1 . . Known Exits Taken 4 | . . . . . 1 1 1 1 . Unknown Exits Taken 5 | 1 1 1 1 1 . . . . . Scrap Searched 11 | . . . . 10 . . 1 . . Spaces Dug 26 | . 1 . . . 12 12 1 . . Terrain Destroyed 252 | . 1 50 . . 106 55 1 10 29 Melee 25 | . . . . . 12 12 1 . . Projectile 37 | . 1 . . . 2 4 . 1 29 AOE 189 | . . 50 . . 91 39 . 9 . Terrain Rammed . | . . . . . . . . . . Walls Destroyed . | . . . . . . . . . . Machines Disabled . | . . . . . . . . . . Actions | -11 -10 -10 -9 -9 -6 -5 -5 -5 -5 --------- Run | Yrd Mat Sub Rec Scr Fac Fac Upp Upp War Total 7893 | 163 882 843 374 2292 950 768 364 350 907 Wait 354 | 3 100 3 . 1 154 63 5 6 19 Move 6811 | 138 707 783 358 2228 659 570 320 251 797 Hop . | . . . . . . . . . . Pick Up 114 | 6 9 6 7 32 19 19 3 2 11 Fast Attach 70 | 8 2 2 . 9 14 17 3 3 12 Attach 51 | . . 2 . 3 21 7 . 2 16 Detach 5 | 1 . . . . 2 2 . . . Swap 87 | . 17 8 2 2 13 22 9 7 7 Drop 89 | . 14 6 1 17 7 19 10 2 13 Fire 171 | 7 33 33 6 . 23 21 5 12 31 Melee 77 | . . . . . 38 28 9 1 1 Ram . | . . . . . . . . . . Kick . | . . . . . . . . . . Crush . | . . . . . . . . . . Escape Stasis . | . . . . . . . . . . Rewire 64 | . . . . . . . . 64 . Trap . | . . . . . . . . . . Miscellaneous . | . . . . . . . . . . Route ------- -11/Scrapyard -10/Materials (discovered 6 exits: [*Mat x3] / *Min x2 / *Sub) -10/Subcaves (discovered 3 exits: [*Mat x2] / *Rec) -9/Recycling -9/Scraptown (discovered 2 exits: *Fac x2) -6/Factory (discovered 3 exits: *Fac x2 / Low) -5/Factory (discovered 3 exits: [*Fac] / *Upp x2) -5/Upper Caves -5/Upper Caves (discovered 2 exits: [*Fac] / *War) -5/Warlord History --------- Turn | Location | Event 29 | -11/Scrapyard | Discovered new exit (range 15) 226 | -11/Scrapyard | Entered Materials 303 | -10/Materials | Build established: Mutant 473 | -10/Materials | Discovered new exit (range 14) 509 | -10/Materials | Identified exit to Mines 622 | -10/Materials | Discovered new exit (range 14) 716 | -10/Materials | Discovered new exit (range 13) 782 | -10/Materials | Discovered new exit (range 6) 923 | -10/Materials | Discovered new exit (range 14) 1336 | -10/Materials | Entered Subcaves 1336 | -10/Subcaves | Discovered new exit (range 11) 1489 | -10/Subcaves | Discovered new exit (range 14) 1571 | -10/Subcaves | Visited 4L-MR0's lab 1592 | -10/Subcaves | Found Cargo Legs 1927 | -10/Subcaves | Discovered new exit (range 9) 2024 | -10/Subcaves | Ambushed by Subdwellers from Twisted Machinery 2192 | -10/Subcaves | Core integrity fell below 50% 2684 | -10/Subcaves | Entered Recycling 3299 | -9/Recycling | Scanned before Scraplab entrance 3606 | -9/Recycling | Entered Scraplab 3632 | -9/Recycling | Discovered new exit (range 3) 3637 | -9/Recycling | Entered Scraptown 4256 | -9/Scraptown | Scanned Subdweller tech in exchange for log data 4261 | -9/Scraptown | Learned Factory stockpile data 4264 | -9/Scraptown | Learned location of 2 exits from Lower Caves 4300 | -9/Scraptown | Discovered new exit (range 7) 4491 | -9/Scraptown | Visited Cyclists 4590 | -9/Scraptown | Visited Symbiants 4632 | -9/Scraptown | Visited Shadow of the Wyrm 4710 | -9/Scraptown | Visited UFD Registry 4746 | -9/Scraptown | Visited Bundlers 4880 | -9/Scraptown | Visited TADAMA 4926 | -9/Scraptown | Visited Fellowship of the Rings 5676 | -9/Scraptown | Registered with UFD as "Matrixcell" 5765 | -9/Scraptown | Visited Cartography Club 5822 | -9/Scraptown | Released all parts (7) 5861 | -9/Scraptown | Learned location of Proximity Caves (-4) 5861 | -9/Scraptown | Learned location of Warlord (-5) 5861 | -9/Scraptown | Learned location of Testing (-2) 5861 | -9/Scraptown | Learned 8 Research zone layouts 5861 | -9/Scraptown | Learned 4 Access zone layouts 5861 | -9/Scraptown | Learned 8 Access zone layouts 5861 | -9/Scraptown | Learned 4 Storage zone layouts 5861 | -9/Scraptown | Learned 20 Lower Caves zone layouts 5861 | -9/Scraptown | Learned 8 Upper Caves zone layouts 5861 | -9/Scraptown | Learned 20 Proximity Caves zone layouts 5861 | -9/Scraptown | Learned Factory emergency access door positions 5861 | -9/Scraptown | Learned location of 1 exit from Upper Caves 5861 | -9/Scraptown | Learned location of 2 exits from Upper Caves 5861 | -9/Scraptown | Learned location of 3 exits from Proximity Caves 5875 | -9/Scraptown | Found Deep Structural Scanner 5993 | -9/Scraptown | Visited Junk Repository 6031 | -9/Scraptown | Visited Junk Repository 6059 | -9/Scraptown | Visited Scrapoid Research Area 6099 | -9/Scraptown | Visited DA-N13 Charitable Foundation 6118 | -9/Scraptown | Found DCF Scrap (29 items) 6158 | -9/Scraptown | Visited Science Guys 6249 | -9/Scraptown | Visited Curators Association 6506 | -9/Scraptown | Visited Science Testing Area 6534 | -9/Scraptown | Visited Derelict Rescue Squad 6545 | -9/Scraptown | Found DRS Beacon 6664 | -9/Scraptown | Visited Scrap Suit Storage 6744 | -9/Scraptown | Discovered new exit (range 9) 8082 | -9/Scraptown | Attached Cargo Legs, gained temporary slots: Utility x2 8524 | -9/Scraptown | Met Optimus 8524 | -9/Scraptown | Accepted into 0bPrime 8646 | -9/Scraptown | Entered Factory 8646 | -6/Factory | Evolved 8 slots: Propulsion x4, Utility x1, Weapon x3 8647 | -6/Factory | Identified exit to Lower Caves 8834 | -6/Factory | Discovered new exit (range 13) 8857 | -6/Factory | Identified exit to Factory 9146 | -6/Factory | Lost 3 parts (1p1n1w) 9235 | -6/Factory | Fabricated Cooling System (x2) 9287 | -6/Factory | Discovered exit to Factory (range 19) 9726 | -6/Factory | Garrison activated, responded to threat 9802 | -6/Factory | Lost 9 parts (1p5n1u2w) 9857 | -6/Factory | Destroyed 8 combat bots 9891 | -6/Factory | Entered another Factory area 9891 | -5/Factory | Evolved 2 slots: Utility x2 9892 | -5/Factory | Identified exit to Upper Caves 9918 | -5/Factory | Lost 13 parts (1p3n4u5w) 10035 | -5/Factory | Loaded intel: 8 recycling unit locations 10098 | -5/Factory | Discovered new exit (range 14) 10130 | -5/Factory | Lost 3 parts (1n1u1w) 10391 | -5/Factory | Build established: Scavenger-Gunner 10793 | -5/Factory | Learned location of Protoforge (-3) 10825 | -5/Factory | Cargo convoy interrupted 10972 | -5/Factory | Entered Upper Caves 10973 | -5/Upper Caves | Identified exit to Upper Caves 11121 | -5/Upper Caves | Encountered a Warlord checkpoint 11423 | -5/Upper Caves | Entered another Upper Caves area 11423 | -5/Upper Caves | Discovered new exit (range 14) 11424 | -5/Upper Caves | Identified exit to Warlord 11445 | -5/Upper Caves | Learned location of 1 exit from Factory 11539 | -5/Upper Caves | Attracted the attention of an 0b10 outpost 11583 | -5/Upper Caves | Destroyed 7 combat bots 11652 | -5/Upper Caves | Lost 3 parts (1n2w) 11849 | -5/Upper Caves | Found Alien Artifact 11858 | -5/Upper Caves | Entered Warlord 11858 | -5/Warlord | Accompanied by 1 ally 11902 | -5/Warlord | System corruption cleaned by Quarantine Array 12473 | -5/Warlord | Visited the Vortex Lab 12484 | -5/Warlord | Warlord's base attacked by MAIN.C 12495 | -5/Warlord | Met EX-DEC 12500 | -5/Warlord | Found Prototype Energy Cannon 12513 | -5/Warlord | Found Prototype Energy Cannon 12513 | -5/Warlord | Identified Vortex Cannon 12517 | -5/Warlord | Found Vortex Cannon 12636 | -5/Warlord | Rebuked by Warlord 12748 | -5/Warlord | Learned Testing emergency access door positions 12750 | -5/Warlord | Learned 4 Armory zone layouts 12750 | -5/Warlord | Learned 4 Research zone layouts 12750 | -5/Warlord | Learned 4 Quarantine zone layouts 12750 | -5/Warlord | Learned 4 Quarantine zone layouts 12752 | -5/Warlord | Learned Factory repair station intel 12752 | -5/Warlord | Learned Factory garrison access intel 12752 | -5/Warlord | Learned Armory repair station intel 12752 | -5/Warlord | Learned Armory garrison access intel 12834 | -5/Warlord | Warlord forces counterattacked 12944 | -5/Warlord | Spotted Striker 12944 | -5/Warlord | Spotted Executioner 12973 | -5/Warlord | Destroyed Striker 13004 | -5/Warlord | Lost 10 allies 13145 | -5/Warlord | Opened side exit 13159 | -5/Warlord | Warlord base infiltrated, sounded retreat 13181 | -5/Warlord | Spotted Executioner 13224 | -5/Warlord | Destroyed Executioner 13233 | -5/Warlord | Lost 4 parts (1p3w) 13251 | -5/Warlord | Spotted Executioner 13287 | -5/Warlord | Spotted B-86 Titan 13290 | -5/Warlord | Spotted Striker 13317 | -5/Warlord | Spotted Executioner 13330 | -5/Warlord | Identified Dimensional Node Initializer 13330 | -5/Warlord | Initialized slip node 13334 | -5/Warlord | Core integrity fell below 50% 13334 | -5/Warlord | Core integrity fell below 20% 13334 | -5/Warlord | System corruption reached 10% 13339 | -5/Warlord | Released all parts (6) 13367 | -5/Warlord | Found Prototype Processor 13367 | -5/Warlord | Identified Exp. Core Analyzer 13368 | -5/Warlord | Lost 21 parts (1p10n2u8w) 13368 | -5/Warlord | Destroyed by Striker with Plasma Lance Last Messages --------------- 13333_ Carbon-fiber Leg destroyed. 13333_ P-80 Master destroyed. 13333_ WAR.Sys disabled. 13333_ P-70 Sage destroyed. 13335_ The unstable cave ceiling collapses. 13337_ Carbon-fiber Leg destroyed. 13338_ The unstable cave ceiling collapses. 13339_ Released Neutrino Core. 13339_ Released Adv. Targeting Computer. 13339_ Released Core Analyzer. 13339_ Released Huge Storage Unit. 13339_ Released Med. Reactive Plating. 13339_ Released Phasing Sabre. 13340_ The unstable cave ceiling collapses. 13340_ P-70 Sage resets Striker, system corruption cleaned. 13352_ System corrupted: Matter fused (-10). 13364_ Acquired 27 matter. 13367_ Acquired Prototype Processor. 13367_ Identified Exp. Core Analyzer. Map ----- +----------------------------------------------------+ | ?????????????????????????????????????## # # | | ?????????????????#############??????### # # | | ??# ????? " ######## # # # | | ??# ???????????+ % &/ | | ??# #??????????# % ![ !!*] | | ??#+#+########??????????# =[!#"#"### # ! # #" | | ??+ ####??????????## *#######?# ## | | ??# ##### ## #####???## #### | | ??## ### ##### #" #####????# #?# | | # ?# ### ##### ## #####????### # ####### | | ##?# ### ########+####### #####??????#######??#" | | ##?# ## ##### ##### # ???????????????#" | | ##?# ## # #?????????????# | | ##?# ## " #?????????????# | | ##?# ## ## ## ##### # #?????????????# | | ##?#+### #########################?????????????# | | ? # ######## ####???????????????## | | ? # ######## """ """ ####????????????### # | | ? + + """ """ ####????????????# | | ?? # ###### """ """ #####?????????????# | | ?? # ##### """ """ #####?????????????### | | ?? # ###### """ """ #####???????????????? | | ? # + ;####???????????????? | | ? ###### #######/#+### ######""####??????? | | ############### K = #####""####??????? | | ######!!"""#### @K% # ####""########??? | | #############!! X "### [! #######""########### | | #############"" !## = #######""########### | | ## ##""X !## ## %= #######""########### | | ## ##""" !# # / =# "" "####### | | + ##### #### # # "" """""""" | | ## #####+##### # "" """""""" | | ## [ ### !=! | | # !! + ! * *= ^ | | # ! ### = !!= [ | | # ### """ %= %%! ![ | | ###+#+####### """ !==%!% % # "" """""""" | | ### """ = # !="" """""""" | | + # "" "####### | | # "#" #######""########### | | + ^^ #######""########### | | #####+#####+##"#### # #######""########### | | #### #########" """ #######""########??? | | #### "" ########## """ #######""####??????? | | #### "" ###"""""## """ #######""####??????? | | #### """ ###" X X## """ ############???????? | | #### """ ###"X ## """ ############???????? | | #### "" ###" # ############???????? | | #### "" ###"X + ############???????# | | #### #### X## """ # ####???????# | +----------------------------------------------------+ Best States ------------- Heat Dissipation 71 Energy Generation 19 Energy Capacity 315 Matter Stores 300 Matter Capacity 300 Sight Range 16 Robot Scan Range 15 Terrain Scan Range 16 Terrain Scan Density 10 Armor Coverage 225 Resistance: KI 30 Core Shielding 20 Phase Shifting 5 Evasion (%) 65 Targeting Accuracy 8 Core Analysis 6 Recoil Reduction 2 Authchip Count 3 Item Schematics ----------------- Minigun | -9/Recycling | Hacked Cooling System | -9/Recycling | Hacked Carbon-fiber Leg | -9/Recycling | Hacked Plasma Cutter | -9/Recycling | Hacked Robot Schematics ------------------ None Fabricated ------------ Cooling System | x2 | -6/Factory | Authchip Repaired ---------- Nothing Alien Tech Used ----------------- Dimensional Node Initializer Achievements -------------- None Challenges ------------ None Game ------ Seed FrostReactionAccelerator Manual? 0 Play Time 02:26:42 Cumulative 155.0 hours Start 2025.09.10 @ 08:05:17 End 2025.09.12 @ 00:49:11 Sessions 10 Manual Loads 0 Difficulty Rogue Special Mode None Game No. 55 Rogue 55 Adventurer 0 Explorer 0 Win Type - Total 2 Types 2/0/0/0/0/0/0/0/0/0 Lore% 58 Gallery% 57 Achievement% 51 Wizard Run 0 Options --------- Layout 1 ASCII 0 Keyboard 0 Movement Mouse Keybinds 0 Fullscreen 1 Font 32/Smallcaps Map View 50x35 Zoom Use 0% Tactical HUD 1 Map Filters NONE Filters NONE Steam 1 RUN: 32e0f40d-f1c4-4349-905e-4d53859335f8